bitfinex/quotes_SOLUSD_20260220
["timestamp","ask_amount","ask_price","bid_price","bid_amount"]
[1771607122957,3.28346787,84.496,84.461,3.07251775]
[1771607123159,11.55310505,84.49,84.456,11.84043971]
[1771607123374,3.28346787,84.489,84.452,14.91354854]
[1771607123576,11.55310505,84.48,84.443,3.07251775]
[1771607123772,41.42158892,84.497,84.434,3.07251775]
[1771607123773,3.28346787,84.469,84.434,3.07251775]
[1771607124786,3.28346787,84.469,84.435,11.84342985]
[1771607124971,11.55310505,84.47,84.435,3.07251775]
[1771607124972,15.12227073,84.468,84.435,3.07251775]
[1771607125485,3.28346787,84.467,84.435,3.07251775]
[1771607125884,11.55310505,84.46,84.422,11.84515745]
[1771607126061,14.83657292,84.46,84.423,3.07251775]
[1771607126770,3.28346787,84.459,84.423,3.07251775]
[1771607127181,11.84020459,84.458,84.43,11.55310505]
[1771607127361,15.12367246,84.458,84.425,3.07251775]
[1771607127673,3.28346787,84.457,84.425,3.07251775]
[1771607130181,3.28346787,84.455,84.425,3.07251775]
[1771607132073,11.84076538,84.454,84.425,3.07251775]
[1771607132275,3.28346787,84.453,84.425,3.07251775]
[1771607133092,3.28346787,84.449,84.425,3.07251775]
[1771607133393,3.28346787,84.449,84.415,3.07251775]
[1771607134598,3.28346787,84.447,84.415,3.07251775]
[1771607135196,3.28346787,84.447,84.416,14.91861327]
[1771607135386,3.28346787,84.447,84.417,3.07251775]
[1771607136892,11.55310505,84.46,84.421,3.07251775]
[1771607137092,47.33006641,84.513,84.451,3.05301076]
[1771607137093,11.83824225,84.472,84.451,3.05301076]
[1771607137392,3.11126825,84.481,84.46,11.55310505]
[1771607137592,3.11126825,84.481,84.42,11.55310505]
[1771607137593,3.11126825,84.498,84.47,11.55310505]
[1771607137788,3.11126825,84.507,84.48,11.55310505]
[1771607138090,3.11126825,84.513,84.481,3.05301076]
[1771607138274,3.11126825,84.512,84.481,3.05301076]
[1771607138891,11.83277916,84.511,84.483,3.05301076]
[1771607139293,3.11126825,84.51,84.483,3.05301076]
[1771607139679,3.11126825,84.51,84.434,47.37397134]
[1771607139680,3.11126825,84.51,84.472,3.05301076]
[1771607140077,3.11126825,84.499,84.463,3.05301076]
[1771607140979,11.83459963,84.498,84.463,3.05301076]
[1771607141186,3.11126825,84.497,84.463,3.05301076]
[1771607142281,3.11126825,84.489,84.451,3.05301076]
[1771607142491,3.11126825,84.489,84.461,3.05301076]
[1771607142875,3.11126825,84.489,84.451,3.05301076]
[1771607143076,11.55310505,84.48,84.451,14.8940736]
[1771607143284,3.11126825,84.479,84.443,3.05301076]
[1771607145283,3.11126825,84.477,84.443,3.05301076]
[1771607146592,14.94894995,84.476,84.443,3.05301076]
[1771607148199,14.94894995,84.476,84.451,3.05301076]
[1771607148505,3.11126825,84.509,84.472,3.05301076]
[1771607148688,14.94432745,84.509,84.472,3.05301076]
[1771607148895,3.11126825,84.508,84.472,3.05301076]
[1771607149697,3.11126825,84.517,84.49,11.55310505]
[1771607149897,14.9429274,84.519,84.491,3.05301076]
[1771607150100,3.11126825,84.518,84.481,3.05301076]
[1771607150686,3.11126825,84.516,84.483,3.05301076]
[1771607150987,41.41178697,84.517,84.462,3.05301076]
[1771607150988,11.55310505,84.49,84.462,3.05301076]
[1771607151496,14.6643733,84.49,84.462,3.05301076]
[1771607152101,3.11126825,84.489,84.462,3.05301076]
[1771607153405,3.11126825,84.487,84.452,3.05301076]
[1771607154407,11.83628056,84.486,84.454,3.05301076]
[1771607155290,11.83577051,84.49,84.461,3.05301076]
[1771607156198,3.11126825,84.489,84.451,3.05301076]
[1771607156400,3.11126825,84.479,84.449,11.84142157]
[1771607156588,3.11126825,84.479,84.445,14.89497379]
[1771607156793,3.11126825,84.479,84.438,3.05301076]
[1771607157296,3.11126825,84.469,84.437,11.84314933]
[1771607157490,3.11126825,84.469,84.431,3.05301076]
[1771607157694,41.42600131,84.488,84.431,3.05301076]
[1771607157695,3.11126825,84.459,84.431,3.05301076]
[1771607158300,11.84020459,84.458,84.431,3.05301076]
[1771607158503,3.11126825,84.457,84.431,3.05301076]
[1771607158704,3.11126825,84.457,84.432,11.84385067]
[1771607158998,3.11126825,84.457,84.424,11.84488513]
[1771607159203,3.11126825,84.449,84.412,3.05301076]
[1771607160193,14.95147284,84.458,84.421,3.05301076]
[1771607160524,11.83805555,84.474,84.451,3.05301076]
[1771607161110,11.83656076,84.484,84.451,3.05301076]
[1771607161419,14.6643733,84.48,84.451,3.05301076]
[1771607161596,3.11126825,84.479,84.442,14.89545883]
[1771607161914,3.11126825,84.479,84.451,3.05301076]
[1771607163500,3.11126825,84.469,84.433,14.8965843]
[1771607163703,3.11126825,84.469,84.434,3.05301076]
[1771607163918,11.55310505,84.47,84.434,3.05301076]
[1771607164222,3.11126825,84.469,84.434,3.05301076]
[1771607164810,3.11126825,84.469,84.441,3.05301076]
[1771607165916,11.83880286,84.468,84.442,11.84244807]
[1771607166110,11.83880286,84.468,84.442,14.94485595]
[1771607166818,11.83880286,84.468,84.442,3.10240788]
[1771607167116,3.16916985,84.459,84.432,11.84385067]
[1771607167325,11.83880286,84.468,84.433,3.02293153]
[1771607167499,3.02364649,84.477,84.441,3.02293153]
[1771607167694,3.02364649,84.486,84.451,3.02293153]
[1771607168010,3.02364649,84.479,84.451,3.02293153]
[1771607168521,14.86104794,84.478,84.451,3.02293153]
[1771607169305,5.36086188,84.529,84.432,29.60962668]
[1771607169306,11.83544004,84.492,84.461,3.02293153]
[1771607169919,11.55310505,84.49,84.461,3.02293153]
[1771607170101,3.02364649,84.489,84.461,3.02293153]
[1771607170523,3.02364649,84.479,84.451,3.02293153]
[1771607170824,11.55310505,84.48,84.452,3.02293153]
[1771607171019,3.02364649,84.479,84.441,3.02293153]
[1771607171222,3.02364649,84.479,84.442,3.02293153]
[1771607171415,3.02364649,84.487,84.451,3.02293153]
[1771607172723,3.02364649,84.485,84.452,3.02293153]
[1771607172932,3.02364649,84.479,84.437,11.84314933]
[1771607173220,3.02364649,84.469,84.438,3.02293153]
[1771607173520,3.02364649,84.459,84.429,11.84427151]
[1771607173905,3.02364649,84.459,84.429,14.86720304]
[1771607175706,3.02364649,84.457,84.429,14.86720304]
[1771607176331,3.02364649,84.457,84.43,3.02293153]
[1771607177220,11.8396403,84.463,84.431,3.02293153]
[1771607178028,11.55310505,84.46,84.431,3.02293153]
[1771607178325,11.55310505,84.46,84.433,3.02293153]
[1771607178824,3.02364649,84.459,84.433,3.02293153]
[1771607179026,3.02364649,84.467,84.433,3.02293153]
[1771607179237,11.83760652,84.477,84.441,3.02293153]
[1771607179524,11.83726133,84.479,84.441,3.02293153]
[1771607179924,14.86090782,84.479,84.441,3.02293153]
[1771607180124,14.86090782,84.479,84.44,11.54961707]
[1771607180125,3.02364649,84.478,84.443,3.02293153]
[1771607182521,11.54961707,84.5,84.461,3.02293153]
[1771607182717,3.02364649,84.499,84.461,3.02293153]
[1771607184736,3.02364649,84.499,84.46,11.54961707]
[1771607184737,14.85824612,84.498,84.463,3.02293153]
[1771607185431,3.02364649,84.506,84.471,3.02293153]
[1771607185627,3.02364649,84.506,84.462,11.83964386]
[1771607185628,11.83165915,84.519,84.481,3.02293153]
[1771607185834,14.85530564,84.519,84.491,3.02293153]
[1771607186039,3.02364649,84.518,84.491,3.02293153]
[1771607186231,3.02364649,84.499,84.463,3.02293153]
[1771607186637,47.31733661,84.536,84.443,51.8]
[1771607186638,3.02364649,84.525,84.481,3.02293153]
[1771607186939,3.02364649,84.489,84.455,3.02293153]
[1771607187135,3.02364649,84.489,84.45,11.54961707]
[1771607187136,3.02364649,84.489,84.457,3.02293153]
[1771607188241,3.02364649,84.499,84.471,3.02293153]
[1771607188744,3.02364649,84.508,84.473,3.02293153]
[1771607188931,3.02364649,84.508,84.481,3.02293153]
[1771607189243,11.8330592,84.509,84.481,3.02293153]
[1771607189948,3.02364649,84.508,84.473,3.02293153]
[1771607190544,3.02364649,84.499,84.471,11.838326]
[1771607191348,11.83459963,84.498,84.471,3.02293153]
[1771607191850,3.02364649,84.509,84.481,3.02293153]
[1771607193464,3.02364649,84.507,84.481,3.02293153]
[1771607193664,3.02364649,84.507,84.477,11.83745494]
[1771607193860,3.02364649,84.507,84.473,3.02293153]
[1771607194057,3.02364649,84.499,84.474,11.83796197]
[1771607194247,3.02364649,84.499,84.475,3.02293153]
[1771607194648,3.02364649,84.507,84.481,3.02293153]
[1771607195552,3.02364649,84.516,84.483,3.02293153]
[1771607197047,3.02364649,84.509,84.478,11.83732204]
[1771607197376,3.02364649,84.509,84.478,14.78495729]
[1771607197667,2.88608454,84.507,84.48,14.49725232]
[1771607198469,2.88608454,84.507,84.481,2.94763525]
[1771607199469,14.53570161,84.54,84.501,2.94763525]
[1771607199644,2.88608454,84.539,84.511,2.94763525]
[1771607200151,2.88608454,84.529,84.5,11.54961707]
[1771607200644,2.88608454,84.529,84.501,2.94763525]
[1771607201646,2.88608454,84.527,84.49,11.54961707]
[1771607201957,2.88608454,84.527,84.501,2.94763525]
[1771607202152,11.82978763,84.533,84.501,2.94763525]
[1771607202858,11.82978763,84.533,84.511,2.94763525]
[1771607203062,11.82923514,84.537,84.511,2.94763525]
[1771607203571,0.1,84.54,84.521,2.94763525]
[1771607204057,0.1,84.54,84.52,11.54961707]
[1771607204058,0.1,84.54,84.523,2.94763525]
[1771607204470,0.1,84.54,84.531,2.94763525]
[1771607205545,11.64961707,84.57,84.53,11.54961707]
[1771607205546,0.1,84.57,84.532,2.94763525]
[1771607205753,2.98608454,84.57,84.541,2.94763525]
[1771607206068,0.1,84.57,84.551,2.94763525]
[1771607207457,0.1,84.58,84.561,2.94763525]
[1771607207676,0.1,84.58,84.57,11.54961707]
[1771607207849,0.1,84.58,84.561,2.94763525]
[1771607208051,2.98608454,84.58,84.556,11.82643747]
[1771607208744,2.98608454,84.58,84.553,2.94763525]
[1771607208950,2.88608454,84.579,84.546,11.8278522]
[1771607209765,2.88608454,84.579,84.546,14.77548745]
[1771607210073,2.88608454,84.577,84.547,2.94763525]
[1771607211956,2.88608454,84.569,84.538,2.94763525]
[1771607212177,2.88608454,84.549,84.498,2.94763525]
[1771607212399,242.3855467,84.576,84.484,11.83656076]
[1771607212400,11.54961707,84.52,84.484,11.83656076]
[1771607212672,11.54961707,84.51,84.486,2.94763525]
[1771607213275,14.43570161,84.51,84.471,2.94763525]
[1771607213779,14.43570161,84.5,84.471,2.94763525]
[1771607214176,2.88608454,84.498,84.471,2.94763525]
[1771607214554,14.43570161,84.49,84.461,2.94763525]
[1771607214767,2.88608454,84.489,84.461,2.94763525]
[1771607215568,11.54961707,84.48,84.452,2.94763525]
[1771607216260,11.54961707,84.47,84.441,2.94763525]
[1771607216460,11.54961707,84.47,84.442,2.94763525]
[1771607218774,11.54961707,84.34,84.33,0.2]
[1771607219075,11.54961707,84.34,84.32,0.2]
[1771607219275,3.69383402,84.327,84.31,1e-08]
[1771607219477,0.2,84.308,84.278,3.14886504]
[1771607219785,11.54961707,84.3,84.278,3.14886504]
[1771607220072,3.69383402,84.287,84.26,0.2]
[1771607220278,11.54961707,84.3,84.24,0.2]
[1771607220279,3.69383402,84.267,84.24,0.2]
[1771607220479,0.14216157,84.294,84.251,3.14886504]
[1771607220673,11.54961707,84.27,84.251,3.14886504]
[1771607220878,0.14216157,84.279,84.251,3.14886504]
[1771607221056,0.14216157,84.297,84.261,3.14886504]
[1771607221259,11.86184997,84.304,84.28,11.54961707]
[1771607221460,11.86184997,84.304,84.271,3.14886504]
[1771607221760,11.54961707,84.29,84.251,3.14886504]
[1771607222072,11.54961707,84.27,84.24,3.34886504]
[1771607222267,3.69383402,84.297,84.251,3.14886504]
[1771607222464,41.52035683,84.296,84.251,3.14886504]
[1771607222869,11.54961707,84.28,84.241,3.14886504]
[1771607223270,11.54961707,84.28,84.242,3.14886504]
[1771607223665,11.54961707,84.27,84.24,0.2]
[1771607223983,11.54961707,84.28,84.241,3.14886504]
[1771607224378,11.86136632,84.308,84.271,3.14886504]
[1771607224563,47.42294823,84.348,84.281,3.14886504]
[1771607224564,11.86023848,84.316,84.281,3.14886504]
[1771607224764,11.86023848,84.316,84.29,11.54961707]
[1771607224958,11.86023848,84.316,84.291,3.14886504]
[1771607225377,11.54961707,84.33,84.291,3.14886504]
[1771607225663,11.54961707,84.33,84.271,0.14216157]
[1771607225664,11.8571237,84.338,84.301,3.14886504]
[1771607226466,11.54961707,84.33,84.301,3.14886504]
[1771607226661,11.8571237,84.338,84.301,3.14886504]
[1771607227080,11.79704669,84.35,84.32,11.54961707]
[1771607227386,11.79704669,84.35,84.331,3.14886504]
[1771607227688,94.79000056,84.398,84.341,3.01871973]
[1771607227689,2.8504878,84.389,84.341,3.01871973]
[1771607229074,2.8504878,84.389,84.35,11.54961707]
[1771607229380,2.8504878,84.389,84.347,3.01871973]
[1771607229583,11.84848161,84.399,84.361,3.01871973]
[1771607229788,11.84848161,84.399,84.37,11.54961707]
[1771607229969,11.84848161,84.399,84.361,3.01871973]
[1771607230584,11.84848161,84.399,84.361,14.87247683]
[1771607230981,11.6173419,84.4,84.371,3.01871973]
[1771607231178,11.84827506,84.401,84.371,3.01871973]
[1771607231366,11.84827506,84.401,84.341,0.14216157]
[1771607231367,2.8504878,84.389,84.35,11.54961707]
[1771607231567,2.8504878,84.399,84.36,14.5683368]
[1771607231790,11.71189014,84.4,84.371,3.01871973]
[1771607232680,11.71189014,84.4,84.38,11.54961707]
[1771607232884,11.84567455,84.419,84.38,11.54961707]
[1771607233090,11.54961707,84.41,84.372,3.01871973]
[1771607233276,2.8504878,84.409,84.37,14.5683368]
[1771607233477,2.8504878,84.409,84.371,3.01871973]
[1771607233868,11.54961707,84.41,84.371,3.01871973]
[1771607234074,11.84495582,84.425,84.4,11.54961707]
[1771607234275,11.84384907,84.433,84.391,3.01871973]
[1771607234491,2.8504878,84.437,84.41,11.54961707]
[1771607234695,3.17755233,84.448,84.42,11.54961707]
[1771607235385,29.59807829,84.465,84.411,11.84679721]
[1771607235386,3.17755233,84.459,84.43,11.54961707]
[1771607235788,3.17755233,84.457,84.416,0.02178029]
[1771607235993,11.84020459,84.458,84.41,11.54961707]
[1771607235994,3.17755233,84.449,84.41,11.54961707]
[1771607236176,3.17755233,84.449,84.411,11.84679721]
[1771607236789,11.84160666,84.448,84.411,11.84679721]
[1771607236988,3.17755233,84.469,84.43,11.54961707]
[1771607237499,3.17755233,84.469,84.44,11.54961707]
[1771607237994,3.17755233,84.469,84.43,11.54961707]
[1771607238676,11.54961707,84.45,84.393,11.84932399]
[1771607238874,3.17755233,84.439,84.41,11.54961707]
[1771607239473,11.84160666,84.448,84.38,11.54961707]
[1771607239474,3.17755233,84.419,84.38,11.54961707]
[1771607239677,3.17755233,84.419,84.39,11.54961707]
[1771607240287,3.17755233,84.429,84.39,11.54961707]
[1771607240798,0.14216157,84.439,84.39,11.54961707]
[1771607240799,14.7271694,84.42,84.39,11.54961707]
[1771607240975,15.02309829,84.42,84.391,11.84960481]
[1771607241173,15.02309829,84.42,84.39,11.54961707]
[1771607241174,14.7271694,84.42,84.39,11.54961707]
[1771607241494,11.84567455,84.419,84.39,11.54961707]
[1771607241694,3.17755233,84.42,84.39,11.54961707]
[1771607241886,11.84567455,84.419,84.39,11.5643413]
[1771607242696,3.17755233,84.418,84.385,11.85042531]
[1771607242889,11.84595519,84.417,84.39,11.5643413]
[1771607243288,3.17755233,84.444,84.401,0.09348207]
[1771607243492,3.17755233,84.455,84.42,11.5643413]
[1771607244081,3.17755233,84.449,84.41,11.5643413]
[1771607244294,3.17755233,84.449,84.42,11.5643413]
[1771607245488,11.84160666,84.448,84.42,11.5643413]
[1771607245685,3.17755233,84.459,84.43,11.5643413]
[1771607245887,3.17755233,84.458,84.416,11.84604343]
[1771607246305,3.17755233,84.458,84.42,11.5643413]
[1771607247585,3.17755233,84.449,84.4,11.5643413]
[1771607248202,3.17755233,84.429,84.394,11.84913714]
[1771607249314,3.17755233,84.427,84.394,11.84913714]
[1771607249714,3.17755233,84.427,84.4,11.5643413]
[1771607249915,3.17755233,84.427,84.39,11.5643413]
[1771607251417,3.17755233,84.425,84.39,11.5643413]
[1771607251715,3.17755233,84.425,84.391,11.84960481]
[1771607252320,3.17755233,84.425,84.4,11.5643413]
[1771607253529,3.17755233,84.423,84.39,11.5643413]
[1771607254927,11.8440341,84.431,84.4,11.5643413]
[1771607255145,3.17755233,84.43,84.4,11.5643413]
[1771607255328,3.17755233,84.419,84.375,0.20375017]
[1771607255524,3.17755233,84.417,84.381,11.85100911]
[1771607255727,3.17755233,84.433,84.391,0.21226791]
[1771607255909,3.17755233,84.444,84.401,0.21226791]
[1771607256109,3.69383402,84.447,84.401,0.21226791]
[1771607256110,3.17755233,84.439,84.401,0.21226791]
[1771607257032,3.17755233,84.429,84.391,0.22063985]
[1771607257430,3.17755233,84.419,84.381,22.15100911]
[1771607257620,3.17755233,84.419,84.381,11.85100911]
[1771607258129,3.17755233,84.417,84.381,11.85100911]
[1771607258432,3.17755233,84.431,84.391,0.2371704]
[1771607259639,3.17755233,84.429,84.381,11.85100911]
[1771607260327,3.17755233,84.424,84.39,11.5643413]
[1771607262538,3.17755233,84.424,84.381,11.85100911]
[1771607262539,3.17755233,84.449,84.41,11.5643413]
[1771607263050,3.17755233,84.446,84.41,11.5643413]
[1771607264439,3.17755233,84.444,84.41,11.5643413]
[1771607265153,3.17755233,84.444,84.42,11.5643413]
[1771607265344,3.17755233,84.444,84.411,11.84679721]
[1771607265654,11.84202735,84.445,84.391,0.29959706]
[1771607265655,14.74189363,84.43,84.391,0.29959706]
[1771607265937,3.17755233,84.429,84.4,11.5643413]
[1771607266144,3.17755233,84.429,84.391,0.29959706]
[1771607266522,3.17755233,84.427,84.392,11.8494644]
[1771607267037,3.17755233,84.427,84.4,11.5643413]
[1771607268344,11.8444118,84.428,84.39,11.5643413]
[1771607268345,3.17755233,84.419,84.39,11.5643413]
[1771607268549,3.17755233,84.429,84.392,0.32153038]
[1771607268727,3.17755233,84.429,84.4,11.5643413]
[1771607269555,3.17755233,84.429,84.361,105.12966214]
[1771607269556,3.17755233,84.428,84.39,11.5643413]
[1771607269849,3.17755233,84.428,84.39,23.41401723]
[1771607271243,3.17755233,84.419,84.382,0.32867386]
[1771607271548,3.17755233,84.419,84.383,11.85072822]
[1771607272247,3.17755233,84.419,84.382,0.32867386]
[1771607273144,3.17755233,84.419,84.391,0.34960713]
[1771607273349,11.84548692,84.421,84.392,11.8494644]
[1771607273531,11.84548692,84.421,84.393,0.3564241]
[1771607274548,15.02303925,84.421,84.393,0.3564241]
[1771607275541,3.17755233,84.419,84.381,11.85088523]
[1771607276847,3.17755233,84.419,84.39,11.5643413]
[1771607277430,3.17755233,84.417,84.382,0.38294599]
[1771607277835,3.17755233,84.417,84.39,11.5643413]
[1771607278753,3.17755233,84.417,84.382,0.38294599]
[1771607279550,15.0235377,84.417,84.39,11.5643413]
[1771607279849,3.17755233,84.416,84.39,11.96014551]
[1771607280037,3.17755233,84.416,84.39,0.39580421]
[1771607280830,3.17755233,84.416,84.373,0.40209654]
[1771607281031,3.17755233,84.416,84.329,5.36086188]
[1771607281032,3.17755233,84.399,84.35,0.40209654]
[1771607281259,3.17755233,84.359,84.323,0.40209654]
[1771607281548,11.85424026,84.358,84.331,11.85803559]
[1771607281749,3.17755233,84.357,84.331,11.85803559]
[1771607281958,3.17755233,84.367,84.34,11.5643413]
[1771607282256,3.17755233,84.367,84.332,0.4083244]
[1771607282639,3.17755233,84.359,84.32,11.85958254]
[1771607282953,11.85274695,84.369,84.31,41.21663574]
[1771607282954,3.17755233,84.349,84.31,41.21663574]
[1771607283347,3.17755233,84.339,84.302,0.41454838]
[1771607283648,3.17755233,84.329,84.3,0.1]
[1771607283865,11.85705138,84.338,84.29,11.6643413]
[1771607283866,3.17755233,84.309,84.29,0.1]
[1771607284049,11.5643413,84.31,84.257,0.42067635]
[1771607284050,3.15758812,84.299,84.26,23.43236883]
[1771607284232,3.15758812,84.289,84.26,11.86802753]
[1771607284436,3.15758812,84.289,84.26,23.43236883]
[1771607285127,3.15758812,84.289,84.26,11.5643413]
[1771607285333,3.15758812,84.289,84.254,11.86882785]
[1771607285553,3.15758812,84.277,84.241,11.87070428]
[1771607285846,11.5643413,84.26,84.24,0.2]
[1771607286025,41.5292247,84.278,84.241,11.87070428]
[1771607286026,3.15758812,84.259,84.241,11.87070428]
[1771607286464,3.27663315,84.282,84.25,11.5643413]
[1771607286629,3.27663315,84.279,84.241,11.87070428]
[1771607286831,3.27663315,84.279,84.24,11.7643413]
[1771607287133,11.5643413,84.28,84.23,29.68062318]
[1771607287134,3.27663315,84.259,84.23,11.5643413]
[1771607287466,3.27663315,84.259,84.225,0.2610045]
[1771607287467,3.16613837,84.249,84.225,0.2610045]
[1771607287764,3.16613837,84.248,84.225,0.2610045]
[1771607287932,3.16613837,84.257,84.23,11.5643413]
[1771607288132,3.16613837,84.256,84.23,11.5643413]
[1771607288737,3.16613837,84.255,84.23,11.5643413]
[1771607289638,3.16613837,84.255,84.226,11.87281836]
[1771607289837,3.16613837,84.253,84.23,11.5643413]
[1771607290040,3.16613837,84.249,84.225,0.2610045]
[1771607290349,3.16613837,84.249,84.211,11.8749332]
[1771607290550,3.16613837,84.239,84.21,11.6643413]
[1771607291246,3.16613837,84.239,84.211,11.8749332]
[1771607292355,3.69383402,84.272,84.22,11.5643413]
[1771607292356,3.16613837,84.237,84.22,11.5643413]
[1771607292557,3.16613837,84.246,84.22,11.5643413]
[1771607293653,3.16613837,84.239,84.21,11.5643413]
[1771607294153,3.16613837,84.239,84.211,11.8749332]
[1771607294935,3.16613837,84.239,84.22,11.5643413]
[1771607295130,3.16613837,84.255,84.22,11.5643413]
[1771607295336,3.16613837,84.255,84.23,11.5643413]
[1771607295765,3.16613837,84.255,84.231,11.87211359]
[1771607296655,3.16613837,84.269,84.24,11.5643413]
[1771607296956,3.16613837,84.268,84.24,11.5643413]
[1771607297661,3.16613837,84.268,84.241,11.87070428]
[1771607297841,3.16613837,84.268,84.25,11.5643413]
[1771607298160,3.16613837,84.277,84.25,11.5643413]
[1771607298660,3.16613837,84.277,84.24,11.5643413]
[1771607299663,3.16613837,84.277,84.241,11.87070428]
[1771607300345,3.16613837,84.276,84.24,11.5643413]
[1771607300751,3.16613837,84.276,84.24,23.43513647]
[1771607300955,3.16613837,84.259,84.22,11.5643413]
[1771607301552,3.16613837,84.259,84.23,11.5643413]
[1771607301761,3.16613837,84.259,84.231,11.87211359]
[1771607302361,3.16613837,84.278,84.24,11.5643413]
[1771607302545,3.16613837,84.269,84.24,11.5643413]
[1771607303063,3.16613837,84.269,84.231,11.87211359]
[1771607303456,3.16613837,84.269,84.231,11.81211359]
[1771607303656,3.16613837,84.269,84.231,11.87211359]
[1771607303964,3.16613837,84.267,84.231,11.87211359]
[1771607304467,3.16613837,84.267,84.229,1.09706971]
[1771607305756,3.16613837,84.265,84.23,11.87225454]
[1771607306264,3.16613837,84.273,84.231,1.11752334]
[1771607307567,3.16613837,84.271,84.232,11.87197264]
[1771607307767,3.16613837,84.271,84.232,12.99937414]
[1771607307966,3.16613837,84.273,84.233,1.1274015]
[1771607308547,3.16613837,84.283,84.251,1.13230098]
[1771607308957,3.16613837,84.283,84.232,41.55190425]
[1771607308958,3.16613837,84.279,84.24,11.60793041]
[1771607309356,11.60793041,84.27,84.24,11.60793041]
[1771607309560,3.16613837,84.269,84.241,11.87070428]
[1771607310257,3.16613837,84.269,84.241,41.547465]
[1771607310662,11.86690084,84.268,84.241,11.87070428]
[1771607310875,3.16613837,84.269,84.241,11.87070428]
[1771607311083,3.16613837,84.269,84.24,11.60793041]
[1771607311377,3.16613837,84.269,84.236,11.87127258]
[1771607311884,11.86690084,84.268,84.24,11.60793041]
[1771607312054,3.16613837,84.267,84.24,11.60793041]
[1771607312651,3.16613837,84.267,84.23,11.60793041]
[1771607312857,3.16613837,84.259,84.23,11.60793041]
[1771607313660,3.16613837,84.259,84.225,11.87295933]
[1771607313956,41.53415294,84.268,84.221,11.87352323]
[1771607313957,3.16613837,84.257,84.221,11.87352323]
[1771607315874,3.16613837,84.257,84.221,41.5573313]
[1771607316054,3.16613837,84.255,84.23,11.60793041]
[1771607317686,3.18746911,84.266,84.24,11.60793041]
[1771607318474,11.86732332,84.265,84.24,11.60793041]
[1771607318681,3.18746911,84.264,84.24,11.60793041]
[1771607319771,3.18746911,84.264,84.241,11.87070428]
[1771607320377,3.69383402,84.292,84.241,11.87070428]
[1771607320378,15.05282109,84.279,84.25,11.60793041]
[1771607320560,15.05282109,84.279,84.251,11.86929531]
[1771607320878,11.60793041,84.29,84.252,1.19034025]
[1771607320879,11.86489857,84.283,84.252,1.19034025]
[1771607321075,3.18746911,84.279,84.25,12.79827066]
[1771607321376,3.18746911,84.288,84.261,1.19034025]
[1771607321880,3.18746911,84.305,84.28,11.60793041]
[1771607322672,3.69383402,84.333,84.271,13.06089658]
[1771607322673,3.18746911,84.303,84.271,13.06089658]
[1771607324670,3.18746911,84.301,84.28,11.60793041]
[1771607324863,3.18746911,84.301,84.271,13.06089658]
[1771607325182,3.18746911,84.301,84.27,11.60793041]
[1771607325382,41.51740171,84.302,84.27,11.60793041]
[1771607325383,3.18746911,84.299,84.27,11.60793041]
[1771607325582,3.18746911,84.299,84.27,23.47452068]
[1771607325994,3.18746911,84.289,84.244,1.21040945]
[1771607326200,3.18746911,84.289,84.25,12.81833986]
[1771607326484,3.18746911,84.289,84.23,10.3]
[1771607326485,3.18746911,84.269,84.231,11.87211359]
[1771607326671,3.18746911,84.267,84.231,11.87211359]
[1771607326866,3.18746911,84.267,84.24,11.60793041]
[1771607328692,3.18746911,84.267,84.241,11.87070428]
[1771607329181,15.05462074,84.267,84.241,11.87070428]
[1771607329366,3.18746911,84.267,84.241,11.87070428]
[1771607330387,3.18746911,84.279,84.25,11.60793041]
[1771607330567,15.05282109,84.279,84.25,11.60793041]
[1771607330766,11.86563356,84.277,84.251,11.86929531]
[1771607330988,3.18746911,84.276,84.251,11.86929531]
[1771607331286,3.18746911,84.276,84.25,11.60793041]
[1771607331977,3.18746911,84.276,84.251,11.86929531]
[1771607332983,0.14216157,84.299,84.222,11.87338225]
[1771607332984,3.18746911,84.259,84.222,11.87338225]
[1771607333179,11.60793041,84.25,84.221,11.87352323]
[1771607333494,3.18746911,84.249,84.221,11.87352323]
[1771607335226,3.18746911,84.247,84.221,11.87352323]
[1771607335394,3.18746911,84.247,84.217,11.87401407]
[1771607336385,3.18746911,84.247,84.21,11.60793041]
[1771607336696,3.18746911,84.247,84.205,11.87577934]
[1771607336697,3.18746911,84.247,84.22,11.60793041]
[1771607336888,3.18746911,84.247,84.205,11.87577934]
[1771607337087,3.18746911,84.239,84.21,11.60793041]
[1771607337300,3.18746911,84.237,84.211,11.8749332]
[1771607338779,3.18746911,84.237,84.21,11.60793041]
[1771607338984,3.18746911,84.237,84.012,66.07299321]
[1771607338985,3.18746911,84.219,84.181,13.136884]
[1771607339300,3.18746911,84.217,84.181,13.136884]
[1771607339489,3.18746911,84.217,84.19,11.60793041]
[1771607339680,3.18746911,84.225,84.2,11.60793041]
[1771607339995,3.18746911,84.225,84.19,11.60793041]
[1771607340196,3.18746911,84.219,84.182,1.26111015]
[1771607340409,11.60793041,84.21,84.173,1.26111015]
[1771607340707,3.18746911,84.209,84.173,1.26111015]
[1771607341080,3.18746911,84.199,84.161,11.88198809]
[1771607341280,3.18746911,84.197,84.161,11.88198809]
[1771607342398,3.18746911,84.179,84.16,0.2]
[1771607342730,41.56967076,84.196,84.15,0.2]
[1771607342731,3.18746911,84.169,84.15,12.08345477]
[1771607342885,3.18746911,84.169,84.151,11.88340007]